Cogmind - Beta 16 @@@ ROGUE MODE // 2025.11.02 @ 18:04:07 Player: Not_Jesus8 Result: Destroyed by C-40 Crusher with Compactor Performance ------------- Evolutions (4) 2000 Regions Visited (5) 1000 Robots Destroyed (8) 40 Value Destroyed (222) 222 Prototype IDs (9) 180 Alien Tech Used (0) 0 Bonus (300) 300 TOTAL SCORE: 3742 Bonus ------- Registered with UFD 300 Cogmind --------- Core Integrity 0/850 Matter 111/300 Energy 100/100 System Corruption 8% Temperature Cool (0) Movement Core (50) Location -6/Waste Parts ------- > --- POWER (1) -------- (None) > --- PROPULSION (4) --- (None) > --- UTILITY (8) ------ (None) > --- WEAPON (2) ------- (None) > --- INVENTORY (5) ---- Assault Cannon Flak Cannon Flak Cannon Flak Cannon CPS Tube (2) Peak State ------------ > --- POWER ------------ Ion Engine > --- PROPULSION ------- Wheel Compact Wheel Compact Wheel > --- UTILITY ---------- Improved Heat Sink Small Storage Unit Medium Armor Plating Improved Light Armor Plating Improved Medium Armor Plating System Shield > --- WEAPON ----------- Flak Cannon Flak Cannon > --- INVENTORY -------- Assault Cannon Assault Cannon Flak Cannon Flak Cannon Flak Cannon CPS Tube CPS Tube [Rating: 28] Favorites ----------- Power Ion Engine Engine Ion Engine Propulsion Compact Wheel Wheel Compact Wheel Utility Small Storage Unit Device Seismic Detector Storage Small Storage Unit Hackware System Shield Protection Medium Armor Plating Weapon Beam Rifle Energy Gun Beam Rifle Ballistic Gun Assault Rifle Ballistic Cannon Flak Cannon Special Weapon CPS Tube Build | -11 -10 -10 -9 -6 -6 ------- Run | Yrd Mat Sub Scr Fac Was Slots Evolved 8 | . . . . 8 . Power . | . . . . . . Propulsion 2 | . . . . 2 . Utility 6 | . . . . 6 . Weapon . | . . . . . . Parts Attached 19 | 7 2 . . 8 2 Power 1 | 1 . . . . . Engine 1 | 1 . . . . . Core . | . . . . . . Reactor . | . . . . . . Propulsion 3 | 2 . . . 1 . Treads . | . . . . . . Leg . | . . . . . . Wheel 3 | 2 . . . 1 . Hover . | . . . . . . Flight . | . . . . . . Utility 7 | 2 . . . 5 . Device 2 | 1 . . . 1 . Storage 1 | 1 . . . . . Processor . | . . . . . . Hackware 1 | . . . . 1 . Protection 3 | . . . . 3 . Artifact . | . . . . . . Weapon 8 | 2 2 . . 2 2 Energy Gun 3 | 1 2 . . . . Energy Cannon . | . . . . . . Ballistic Gun 1 | 1 . . . . . Ballistic Cannon 3 | . . . . 2 1 Launcher . | . . . . . . Special Weapon 1 | . . . . . 1 Impact Weapon . | . . . . . . Slashing Weapon . | . . . . . . Piercing Weapon . | . . . . . . Special Melee Weapon . | . . . . . . Unidentified Prototypes . | . . . . . . Parts Lost 4 | . . . . 1 3 Power . | . . . . . . Propulsion . | . . . . . . Utility 3 | . . . . 1 2 Weapon 1 | . . . . . 1 Highest Loss Streak 3 | . . . . 1 3 To Critical Strikes . | . . . . . . Average Backups 5 | . 1 4 5 7 6 Power . | . . . . . . Propulsion . | . . . . . . Utility 1 | . . . 2 2 . Weapon 2 | . 1 2 1 3 5 Tool/Special . | . . . . . . Unused Backups 12 | . . . 3 3 6 Power 1 | . . . 1 . . Propulsion 1 | . . . 1 . . Utility 1 | . . . . 1 . Weapon 8 | . . . 1 2 5 Tool/Special 1 | . . . . . 1 Average Slot Usage (%) 90 | . 100 100 100 62 53 Engine 12 | . 14 14 14 6 4 Wheel 24 | . 28 28 28 15 13 Device 11 | . 14 14 14 3 4 Storage 12 | . 14 14 14 6 4 Protection 3 | . . . . 15 13 Energy Gun 21 | . 27 28 28 . . Ballistic Cannon 2 | . . . . 12 7 Peak Build Rating 28 | 7 9 10 11 28 28 Average Rating 12 | 5 8 9 10 20 18 On Entrance 10 | . 7 9 10 11 28 Avg Prop Armor Cover (%) . | . . . . . . Naked Turns 25 | . . . . . 25 Heaviest Build 40 | 15 17 17 17 40 40 Greatest Support 42 | 32 32 32 32 42 42 Greatest Overweight (x) 1 | . . . . 1 . Average Overweight (x) . | . . . . . . Largest Inventory Capacity 8 | 8 8 8 8 8 8 Average Capacity 7 | 7 8 8 8 8 7 Most Carried 8 | . 2 8 8 8 8 Average Carried 6 | . 1 6 7 7 6 Final Capacity 8 | 8 8 8 8 8 5 Final Carried 8 | . 2 8 8 8 5 Class Distribution -------------------- 100% | Mutant Dominant Class ---------------- Mutant | -10/Materials Mutant | -10/Subcaves Mutant | -9/Scraptown Mutant | -6/Factory Mutant | -6/Waste Resources | -11 -10 -10 -9 -6 -6 ----------- Run | Yrd Mat Sub Scr Fac Was Matter Collected 393 | 196 59 41 . 97 . Remotely . | . . . . . . Salvage Created 105 | 12 35 . . 58 . Parts 9 | 2 4 . . 3 . Haulers Intercepted . | . . . . . . Recyclers Shooed . | . . . . . . Parts Field Recycled . | . . . . . . Retrieved Matter . | . . . . . . Parts Self-Destructed . | . . . . . . Prevented . | . . . . . . Parts Restored . | . . . . . . Kills | -11 -10 -10 -9 -6 -6 ------- Run | Yrd Mat Sub Scr Fac Was Combat Hostiles Destroyed 5 | . 2 . . 3 . Guns 2 | . 2 . . . . Cannons 3 | . . . . 3 . Classes Destroyed 7 | 1 1 . . 5 . Worker 1 | . . . . 1 . Tunneler 1 | 1 . . . . . Operator 1 | . . . . 1 . Swarmer 2 | . 2 . . . . Grunt 1 | . . . . 1 . Brawler 1 | . . . . 1 . Programmer 1 | . . . . 1 . Best Kill Streak 2 | 1 2 . . 2 . Combat Bots Only 2 | . 2 . . 2 . Max Kills in Single Turn 1 | 1 1 . . 1 . Gunslinging . | . . . . . . Exploded . | . . . . . . Melee . | . . . . . . Uniques/NPCs Destroyed . | . . . . . . Combat | -11 -10 -10 -9 -6 -6 -------- Run | Yrd Mat Sub Scr Fac Was Hostile Shots Fired 44 | . 6 . . 18 20 Missed 10 | . 3 . . 7 . Hits 34 | . 3 . . 11 20 Melee 21 | . . . . 1 20 Projectile 13 | . 3 . . 10 . Critical Strikes 9 | . . . . 1 8 Damage Taken 1175 | . 33 . . 188 954 Core 856 | . 6 . . . 850 Absorbed by Shields . | . . . . . . Regen/Repaired (Parts) 119 | . . . . 119 . Core Remaining (%) 98 | 100 . . 97 . . Volleys Fired 32 | 2 6 . . 16 8 Largest 2 | 2 2 . . 2 2 Hottest 112 | 70 112 . . 74 74 Shots Fired 60 | 4 12 . . 32 12 Gun 16 | 4 12 . . . . Cannon 42 | . . . . 32 10 Launcher . | . . . . . . Special 2 | . . . . . 2 Kinetic 44 | 2 . . . 32 10 Thermal 14 | 2 12 . . . . Explosive . | . . . . . . Electromagnetic . | . . . . . . Robot Hit Streak 14 | 3 2 . . 7 14 Robot Miss Streak 7 | . 4 . . 7 3 Penetration Max . | . . . . . . Secondary Targets . | . . . . . . Shots Hit Robots 45 | 3 3 . . 27 12 Core Hits 32 | 1 2 . . 24 5 Critical Kills . | . . . . . . Critical Parts Destroyed . | . . . . . . Critical Strikes . | . . . . . . Melee Attacks . | . . . . . . Impact . | . . . . . . Slashing . | . . . . . . Piercing . | . . . . . . Sneak Attacks . | . . . . . . Combat Hostiles . | . . . . . . Follow-up Attacks . | . . . . . . Damage Inflicted 949 | 39 43 . . 480 387 Guns 82 | 39 43 . . . . Cannons 814 | . . . . 480 334 Explosions . | . . . . . . Melee . | . . . . . . Ramming 53 | . . . . . 53 Kinetic 828 | 14 . . . 480 334 Thermal 68 | 25 43 . . . . Explosive . | . . . . . . Electromagnetic . | . . . . . . Impact . | . . . . . . Slashing . | . . . . . . Piercing . | . . . . . . Highest Corruption 6 | . . . . . 6 Average Corruption 5 | . . . . . 5 Corruption Purged . | . . . . . . Corruption Blocked . | . . . . . . Effects 1 | . . . . . 1 Message Errors 1 | . . . . . 1 Overload Shots . | . . . . . . Overflow Damage . | . . . . . . Projectiles . | . . . . . . Explosions . | . . . . . . Melee . | . . . . . . Knockbacks 5 | . . . . 5 . Impact . | . . . . . . Kinetic 5 | . . . . 5 . Secondary . | . . . . . . Self-Inflicted Damage 22 | . . . . . 22 Shots . | . . . . . . Rammed 19 | . . . . 1 18 Targets Rammed 19 | . . . . 1 18 Kicked . | . . . . . . Crushed . | . . . . . . Highest Temperature 255 | 18 255 . . 28 . Average Temperature 80 | 10 115 . . 19 . Received Heat Transfer 51 | . 6 . . 45 . Siege Activations . | . . . . . . Martial Activations . | . . . . . . Shielding Activations . | . . . . . . Robots Disrupted . | . . . . . . Combat Hostiles . | . . . . . . Robots Corrupted . | . . . . . . Combat Hostiles . | . . . . . . Parts Fried . | . . . . . . Impact Corruptions . | . . . . . . Robots Melted . | . . . . . . Combat Hostiles . | . . . . . . Parts Melted . | . . . . . . Heat Transferred 185 | 74 111 . . . . Parts Sabotaged . | . . . . . . Parts Stolen . | . . . . . . Parts Stripped . | . . . . . . Power Chain Reactions . | . . . . . . Alert | -11 -10 -10 -9 -6 -6 ------- Run | Yrd Mat Sub Scr Fac Was Maximum Alert Level . | . . . . . . Low Security (%) 100 | 100 100 . . 100 100 Level 1 . | . . . . . . Level 2 . | . . . . . . Level 3 . | . . . . . . Level 4 . | . . . . . . Level 5 . | . . . . . . High Security . | . . . . . . Max Security . | . . . . . . Peak Influence 83 | 5 30 . . 83 13 Initial 13 | . . . . . 13 Average 16 | . 2 . . 30 3 Influence Increases 230 | 5 40 . . 185 . Destroy 0b10 Robot/C 100 | . 40 . . 60 . Destroy 0b10 Robot/NC 15 | 5 . . . 10 . Destroy Leader 20 | . . . . 20 . Successful Hack 19 | . . . . 19 . Disable Machine 30 | . . . . 30 . Destroy Structure 1 | . . . . 1 . Lose Combat Pursuer 45 | . . . . 45 . Influence Decreases 230 | 5 40 . . 146 39 Entered New Map 26 | . . . . . 26 Time Decay 204 | 5 40 . . 146 13 Squads Dispatched 4 | . 1 . . 3 . Investigation 2 | . . . . 2 . Extermination 1 | . . . . 1 . Reinforcement 1 | . 1 . . . . Assault . | . . . . . . Garrison . | . . . . . . Intercept . | . . . . . . Searches Triggered . | . . . . . . Construction Impeded . | . . . . . . Haulers Reinforced . | . . . . . . Active Scanning Responses . | . . . . . . Cargo Convoy Interrupts . | . . . . . . Stealth | -11 -10 -10 -9 -6 -6 --------- Run | Yrd Mat Sub Scr Fac Was Distress Signals 3 | . 3 . . . . Communications Jammed . | . . . . . . Distress Signals . | . . . . . . Times Spotted 21 | . 10 2 . 7 2 Peak Tracking Total 5 | . 5 2 . 3 2 Tactical Retreats 2 | . . . . 2 . Traps | -11 -10 -10 -9 -6 -6 ------- Run | Yrd Mat Sub Scr Fac Was Traps Triggered 1 | . . . . 1 . Indirectly . | . . . . . . Trap Hack Attempts . | . . . . . . Triggered . | . . . . . . Disarmed . | . . . . . . Reprogrammed . | . . . . . . Reused . | . . . . . . Traps Extracted . | . . . . . . Installed . | . . . . . . Triggered . | . . . . . . Machines | -11 -10 -10 -9 -6 -6 ---------- Run | Yrd Mat Sub Scr Fac Was Machines Disabled 2 | . . . . 2 . Max in Single Turn 1 | . . . . 1 . Machines Repaired . | . . . . . . Machines Dismantled . | . . . . . . Machines Sabotaged . | . . . . . . Overloaded Fab Kills . | . . . . . . Hacking | -11 -10 -10 -9 -6 -6 --------- Run | Yrd Mat Sub Scr Fac Was Machines Accessed 6 | . . . 3 3 . Terminals 1 | . . . . 1 . Fabricators 1 | . . . . 1 . Repair Stations 1 | . . . . 1 . Recycling Units . | . . . . . . Scanalyzers . | . . . . . . Garrison Access . | . . . . . . Total Hacks 19 | . . . 10 9 . Successful 14 | . . . 10 4 . Failed 5 | . . . . 5 . Catastrophic 1 | . . . . 1 . Database Lockouts . | . . . . . . Manual 6 | . . . . 6 . Terminals 4 | . . . . 4 . Fabricators 2 | . . . . 2 . Repair Stations 3 | . . . . 3 . Recycling Units . | . . . . . . Scanalyzers . | . . . . . . Garrison Access . | . . . . . . Terminal Hacks 10 | . . . 10 . . Record 9 | . . . 9 . . Proto ID Catalog 1 | . . . 1 . . Fabricator Hacks . | . . . . . . Repair Station Hacks 2 | . . . . 2 . Scan Component 1 | . . . . 1 . Repair 1 | . . . . 1 . Recycling Unit Hacks . | . . . . . . Scanalyzer . | . . . . . . Garrison Access Hacks . | . . . . . . Unauthorized Hacks 2 | . . . . 2 . Terminals 1 | . . . . 1 . Botnet 1 | . . . . 1 . Fabricators 1 | . . . . 1 . Haulers 1 | . . . . 1 . Repair Stations . | . . . . . . Recycling Units . | . . . . . . Scanalyzers . | . . . . . . Garrison Access . | . . . . . . Data Cores Recovered 1 | . . . . 1 . Used . | . . . . . . Hacking Detections 2 | . . . . 2 . Full Trace Events 2 | . . . . 2 . Feedback Events . | . . . . . . Feedback Blocked . | . . . . . . Robot Schematics Acquired . | . . . . . . Robots Built . | . . . . . . Authchips . | . . . . . . Time . | . . . . . . Total Robot Build Rating . | . . . . . . Part Schematics Acquired . | . . . . . . Parts Built . | . . . . . . Authchips . | . . . . . . Time . | . . . . . . Total Part Build Rating . | . . . . . . Part Studies Acquired . | . . . . . . Parts Repaired 1 | . . . . 1 . Time 16 | . . . . 16 . Parts Recycled . | . . . . . . Recycled Matter . | . . . . . . Retrieved Matter . | . . . . . . Retrieved Components . | . . . . . . Parts Scanalyzed . | . . . . . . Part Schematics Acquired . | . . . . . . Parts Damaged . | . . . . . . Bothacking | -11 -10 -10 -9 -6 -6 ------------ Run | Yrd Mat Sub Scr Fac Was Used RIF Installer . | . . . . . . Robots Hacked . | . . . . . . Non-combat . | . . . . . . Combat . | . . . . . . Robot Hacks Applied . | . . . . . . Relay Couplers Released . | . . . . . . Fabnet Peak Effective % . | . . . . . . Robots Rewired . | . . . . . . Allies Hacked . | . . . . . . Hacks Repelled . | . . . . . . Allies | -11 -10 -10 -9 -6 -6 -------- Run | Yrd Mat Sub Scr Fac Was Total Allies . | . . . . . . Largest Group . | . . . . . . Highest-Rated Group . | . . . . . . Highest-Rated Ally . | . . . . . . Total Orders . | . . . . . . Ally Attacks . | . . . . . . Total Damage . | . . . . . . Kills . | . . . . . . Allies Corrupted . | . . . . . . Allies Melted . | . . . . . . Intel | -11 -10 -10 -9 -6 -6 ------- Run | Yrd Mat Sub Scr Fac Was Active Infowar (turns) 2201 | 30 373 259 1329 210 . Seismic 2201 | 30 373 259 1329 210 . Robot Analysis Total . | . . . . . . Derelict Logs Recovered 2 | . . . 2 . . Drone Launches . | . . . . . . Drone Recoveries . | . . . . . . Exploration | -11 -10 -10 -9 -6 -6 ------------- Run | Yrd Mat Sub Scr Fac Was Turns Passed 2631 | 70 373 259 1329 522 78 Spaces Moved 2185 | 56 237 192 1321 347 32 Core 4 | 4 . . . . . Treads . | . . . . . . Legs . | . . . . . . Wheels 2181 | 52 237 192 1321 347 32 Hover . | . . . . . . Flight . | . . . . . . Fastest Speed 50 | 50 100 100 100 93 93 Average Speed 100 | 96 100 100 100 103 93 Slowest Speed 115 | 100 100 100 100 115 93 Overloaded Moves . | . . . . . . Propulsion Burnouts . | . . . . . . Robots Hopped . | . . . . . . Potential Cave-ins . | . . . . . . Cave-ins Triggered . | . . . . . . Exploration Rate (%) 31 | 4 49 20 80 15 22 Regions Visited 5 Branch Regions 2 Pre-discovered Areas 3 | . . . 3 . . Known Exits Taken . | . . . . . . Unknown Exits Taken 4 | 1 1 1 1 . . Scrap Searched 6 | . . . 6 . . Spaces Dug . | . . . . . . Terrain Destroyed 1 | . . . . 1 . Melee . | . . . . . . Projectile . | . . . . . . AOE 1 | . . . . 1 . Terrain Rammed . | . . . . . . Walls Destroyed . | . . . . . . Machines Disabled . | . . . . . . Actions | -11 -10 -10 -9 -6 -6 --------- Run | Yrd Mat Sub Scr Fac Was Total 2562 | 64 361 259 1331 479 68 Wait 276 | . 113 60 . 95 8 Move 2181 | 55 236 191 1320 347 32 Hop . | . . . . . . Pick Up 21 | . 2 7 6 6 . Fast Attach 15 | 7 2 . . 6 . Attach 4 | . . . . 3 1 Detach . | . . . . . . Swap 1 | . . . . . 1 Drop 13 | . 2 1 5 5 . Fire 32 | 2 6 . . 16 8 Melee . | . . . . . . Ram 19 | . . . . 1 18 Kick . | . . . . . . Crush . | . . . . . . Escape Stasis . | . . . . . . Rewire . | . . . . . . Trap . | . . . . . . Miscellaneous . | . . . . . . Route ------- -11/Scrapyard -10/Materials (discovered 2 exits: [*Min] / [*Sub]) -10/Subcaves -9/Scraptown (discovered 2 exits: *Fac x2) -6/Factory (discovered 2 exits: Fac x2) -6/Waste History --------- Turn | Location | Event 21 | -11/Scrapyard | Discovered new exit (range 16) 71 | -11/Scrapyard | Entered Materials 72 | -10/Materials | Met a group of wandering Federalists 177 | -10/Materials | Discovered new exit (range 12) 309 | -10/Materials | Build established: Mutant 419 | -10/Materials | Discovered new exit (range 10) 444 | -10/Materials | Entered Subcaves 445 | -10/Subcaves | Continued accompanying wandering Federalists (5) 690 | -10/Subcaves | Wandering Federalist uncovered a shortcut to Scraptown 703 | -10/Subcaves | Entered Scraptown 802 | -9/Scraptown | Learned location of Extension (-6) 883 | -9/Scraptown | Heard Great Nut preacher, LISTEN AND RECITE! 900 | -9/Scraptown | Scanned Subdweller tech in exchange for log data 902 | -9/Scraptown | Learned location of 2 exits from Factory 903 | -9/Scraptown | Learned Factory garrison access intel 973 | -9/Scraptown | Visited Cyclists 1007 | -9/Scraptown | Visited UFD Registry 1007 | -9/Scraptown | Registered with UFD as "Zeromech" 1078 | -9/Scraptown | Discovered new exit (range 11) 1100 | -9/Scraptown | Guru changed UFD alias to "Pipeblaster" 1211 | -9/Scraptown | Visited Science Guys 1248 | -9/Scraptown | Visited Curators Association 1290 | -9/Scraptown | Visited Junk Repository 1319 | -9/Scraptown | Visited Botcube Research 1328 | -9/Scraptown | Visited Abandonware Association 1342 | -9/Scraptown | Visited Supply Room 1357 | -9/Scraptown | Visited Scrap Suit Storage 1387 | -9/Scraptown | Visited Junk Cannon Lab 1402 | -9/Scraptown | Visited Derelict Rescue Squad 1832 | -9/Scraptown | Entered Cyclist Reading Room 1837 | -9/Scraptown | Learned location of Exiles (-9) 1837 | -9/Scraptown | Learned location of Zion (-6) 1875 | -9/Scraptown | Visited Bundlers 2029 | -9/Scraptown | Discovered new exit (range 3) 2032 | -9/Scraptown | Entered Factory 2032 | -6/Factory | Evolved 8 slots: Propulsion x2, Utility x6 2033 | -6/Factory | Identified exit to Factory 2034 | -6/Factory | Loaded intel: 4 garrison access locations 2345 | -6/Factory | Repaired Med. Armor Plating 2554 | -6/Factory | Sucked down chute 2554 | -6/Factory | Entered Waste 2564 | -6/Waste | Spotted C-40 Crusher 2569 | -6/Waste | EMP discharged 2571 | -6/Waste | Attached CPS modules to C-40 Crusher. 2573 | -6/Waste | Attached CPS modules to C-40 Crusher. 2573 | -6/Waste | Spotted C-40 Crusher 2600 | -6/Waste | Crushed by Compactor (1 part destroyed, 2 dropped) 2603 | -6/Waste | Crushed by Compactor (1 part destroyed, 2 dropped) 2606 | -6/Waste | Crushed by Compactor (1 part destroyed, 1 dropped) 2607 | -6/Waste | Released all parts (4) 2619 | -6/Waste | Core integrity fell below 50% 2628 | -6/Waste | Core integrity fell below 20% 2632 | -6/Waste | Destroyed by C-40 Crusher with Compactor Last Messages --------------- 02600_ Imp. Medium Armor Plating crushed. 02600_ Flak Cannon crushed. 02600_ Imp. Light Armor Plating crushed. 02603_ Med. Armor Plating crushed. 02603_ Wheel crushed. 02603_ Ion Engine crushed. 02606_ Flak Cannon crushed. 02606_ Com. Wheel crushed. 02607_ Released Sml. Storage Unit. 02607_ Released Com. Wheel. 02607_ Released Imp. Heat Sink. 02607_ Released System Shield. 02608_ Imp. Heat Sink crushed. 02608_ Imp. Light Armor Plating crushed. 02609_ Com. Wheel crushed. 02609_ Assault Cannon crushed. 02615_ Slammed into C-40 Crusher. 02616_ Destabilizing: System corrupted (+1). 02617_ Slammed into C-40 Crusher. 02632_ Destabilizing: System corrupted (+2). Map ----- +----------------------------------------------------+ | ??????????????????????????????????????????? | | ??????????????????????????????????????????? | | ??????????????????????????????????????????? | | ??????????????????????????????????????????? | | ??????????????????????????????????????????? | | ??????????????????????????????????????????? | | ??????????????????????????????????????????? | | ??????????????????????????????????????????? | | ??????????????????????????????????????????? | | ??????????????????????????????????????????? | | ??????????????????????????????????????????? | | ??????????????????????????????????????????? | | ??????????????????????????????????????????? | | ??????????????????????????????????????????? | | ??????????????????????????????????????????? | | ??????????????????????????????????????????? | | ??????????????????????????????????????????? | | ??????????????????????????????????????????? | | ??????????????????????????????????????????? | | ???????????????????????????######?????????? | | ???????????????????????????# #?????????? | | ?????????????############??# #?????????? | | ?????????????# #??# #?????????? | | ?????????????# ] #??# #?????????? | | ?????????????# =*! #### ######## | | ?????????????# =@CC | | ?????????????# CCCC | | ?????????????# CC | | ?????????????# | | ?????????????# #### ######## | | ?????????????# #??# #???????? | | ?????????????# #??# #????????? | | ?????????????############??# #?????????? | | ???????????????????????????# #?????????? | | ??????????????????????????? ?????????? | | ?????????????????????????? ????????? | | ?????????????????????????# ???????? | | ?????????????????????????# ??????? | | ?????????????????????????### ####??????? | | ???????????????????????????#! #?????????? | | ???????????????????????????# #?????????? | | ???????????????????????????? ??????????? | | ??????????????????????????????????????????? | | ??????????????????????????????????????????? | | ??????????????????????????????????????????? | | ??????????????????????????????????????????? | | ??????????????????????????????????????????? | | ??????????????????????????????????????????? | | ??????????????????????????????????????????? | | ??????????????????????????????????????????? | +----------------------------------------------------+ Best States ------------- Heat Dissipation 51 Energy Generation 10 Energy Capacity 250 Matter Stores 300 Matter Capacity 300 Sight Range 16 Terrain Scan Density 10 Armor Coverage 600 Evasion (%) 41 Defensive Hacking 10 Item Schematics ----------------- None Robot Schematics ------------------ None Fabricated ------------ Nothing Repaired ---------- Med. Armor Plating | 1% | -6/Factory Studied --------- None Alien Tech Used ----------------- None Achievements -------------- Bob, First Of His Name Longdome?! Challenges ------------ None Game ------ Seed GravityConstructBallwheel Manual? 0 Play Time 00:16:53 Cumulative 29.2 hours Start 2025.11.02 @ 17:46:20 End 2025.11.02 @ 18:04:07 Sessions 1 Manual Loads 0 Difficulty Rogue Special Mode None Game No. 65 Rogue 65 Adventurer 0 Explorer 0 Win Type - Total 2 Types 2/0/0/0/0/0/0/0/0/0 Lore% 38 Gallery% 30 Achievement% 30 Wizard Run 0 Options --------- Layout 1 ASCII 0 Keyboard 1 Movement Arrows Keybinds 0 Fullscreen 1 Font 16/SmallcapsGlow Map View 50x54 Zoom Use 10% Tactical HUD 1 Map Filters NONE Filters NONE Steam 1 RUN: 9bb1476c-318c-4ba7-8d3c-129f18bd6436